fUSD/lending_fUSD_20240517
["ID","MTS","AMOUNT","RATE_DAILY","PERIOD"]
[327255461,1715935831687,-1227.63,9.689e-05,2]
[327255462,1715935831696,-325.73484106,0.00010955,2]
[327255463,1715935831705,-203.86,0.00010959,2]
[327255464,1715935831714,-169.88,0.00010959,2]
[327255465,1715935831723,-849.42,0.00010959,2]
[327255466,1715935831732,-462.585,0.00011455,2]
[327255467,1715935831741,-1080.23,0.00011497,2]
[327255468,1715935831752,-250.0,0.00011513,2]
[327255469,1715935831761,-711.81,0.00011558,15]
[327255470,1715935831770,-250.0,0.00011685,2]
[327255471,1715935831779,-382.95,0.00011733,2]
[327255472,1715935831789,-150.0,0.00011737,2]
[327255473,1715935831799,-150.99,0.00011737,2]
[327255474,1715935831810,-6230.48,0.00011738,2]
[327255475,1715935831823,-150.0,0.00011753,2]
[327255476,1715935831833,-165.71,0.0001179,2]
[327255477,1715935831842,-1227.63,0.00011953,2]
[327255478,1715935831852,-320.0,0.00012098,2]
[327255479,1715935831863,-3513.49538607,0.00012152,2]
[327255480,1715935831873,-420.52,0.00012192,2]
[327255481,1715935831882,-150.0,0.00012192,2]
[327255482,1715935831891,-166.06,0.00012192,2]
[327255483,1715935831903,-420.52,0.00012192,2]
[327255484,1715935831912,-150.0,0.00012192,2]
[327255485,1715935831921,-420.52,0.00012192,2]
[327255486,1715935831930,-191.38,0.00012333,2]
[327255487,1715935831940,-163.38,0.00012378,2]
[327255488,1715935831949,-326.67,0.00012478,2]
[327255489,1715935831959,-163.38,0.00012578,2]
[327255490,1715935831968,-163.38,0.00012578,2]
[327255491,1715935831977,-150.0,0.00012678,2]
[327255492,1715935831986,-420.52,0.00012678,2]
[327255493,1715935831995,-150.0,0.00012678,2]
[327255494,1715935832004,-150.0,0.00012678,2]
[327255495,1715935832013,-5616.88791264,0.0001279,2]
[327255496,1715935832022,-210.5486,0.000128,2]
[327255498,1715935832031,-2487.5065,0.000128,2]
[327255500,1715935832040,-2164.174,0.000128,2]
[327255502,1715935832050,-203.64976612,0.00012869,2]
[327255504,1715935832059,-29333.21198152,0.0001288,2]
[327255506,1715935832071,-52937.69665037,0.0001288,2]
[327255509,1715935832083,-10926.39532666,0.0001288,2]
[327255512,1715935832106,-444.77398767,0.0001288,2]
[327255514,1715935832116,-317.65,0.0001288,2]
[327255516,1715935832127,-5934.99064506,0.0001288,2]
[327255519,1715935832140,-305.41123079,0.0001288,2]
[327255521,1715935832154,-16534.63687429,0.0001288,2]
[327255523,1715935832166,-1454.21319338,0.0001288,2]
[327255526,1715935832178,-22392.0,0.0001288,2]
[327255528,1715935832191,-865.46028817,0.0001288,2]
[327255561,1715935837885,-498.35828287,0.0001288,2]
[327255573,1715935837934,-2294.56957945,0.0001288,2]
[327255579,1715935837985,-370.0802525,0.0001288,2]
[327255585,1715935838036,-7553.02806621,0.0001288,2]
[327255589,1715935838087,-60924.35999925,0.0001288,2]
[327255595,1715935838140,-204609.79501545,0.0001288,2]
[327255597,1715935838150,-1206911.25213116,0.0001288,2]
[327255598,1715935838194,-6214.6915,0.0001288,2]
[327255599,1715935838206,-2948.26001257,0.0001288,2]
[327255619,1715935840006,-1329.74,0.0001288,2]
[327255620,1715935840018,-4491.50901939,0.0001288,2]
[327255621,1715935840326,-226827.86375767,0.0001288,2]
[327255623,1715935840338,-1047.2,0.0001288,2]
[327255680,1715935843063,-268.10887934,0.00012879,2]
[327255681,1715935843074,-3112.49499578,0.0001288,2]
[327255682,1715935843112,-292.5,0.0001288,2]
[327255683,1715935843167,-861.77725,0.0001288,2]
[327255684,1715935843181,-733.0753,0.0001288,2]
[327255693,1715935846206,-27.62305398,0.00012879,2]
[327255694,1715935846218,-750.39157262,0.00012879,2]
[327255695,1715935846227,-2469.15479458,0.0001288,2]
[327255696,1715935846238,-1440.39783507,0.0001288,2]
[327255697,1715935846251,-97275.83447179,0.0001288,2]
[327255698,1715935846262,-33152.765636,0.0001288,2]
[327255701,1715936718187,-199.01606139,8.597e-05,2]
[327255704,1715936795129,4523.872841,8.178e-05,2]
[327255705,1715936846872,173.46603552,8.178e-05,2]
[327255706,1715936858785,173.46603552,8.178e-05,2]
[327255707,1715936877837,172.61171275,8.178e-05,2]
[327255708,1715936922398,970.08187611,8.178e-05,2]
[327255709,1715936942351,492.21996956,8.178e-05,2]
[327255710,1715936957689,217.35624535,8.178e-05,2]
[327255711,1715936960362,970.08187611,8.178e-05,2]
[327255712,1715936962463,194.92185828,8.178e-05,2]
[327255713,1715936980365,698.43778514,8.178e-05,2]
[327255722,1715937032021,-625.89341421,8.58e-05,2]
[327255723,1715937032030,-217.31465462,8.581e-05,2]
[327255724,1715937032040,-778.0146266,8.581e-05,2]
[327255725,1715937032049,-989.62746457,8.581e-05,2]
[327255726,1715937032060,-833.36001832,8.581e-05,2]
[327255727,1715937032072,-537.12016184,8.581e-05,2]
[327255728,1715937032090,-3371.25752983,8.581e-05,2]
[327255729,1715937032101,-299.66504719,8.581e-05,2]
[327255730,1715937032160,-308.807424,8.581e-05,2]
[327255731,1715937032172,-1174.63251467,8.581e-05,2]
[327255732,1715937032181,-1063.64659674,8.582e-05,2]
[327255733,1715937032191,-260.38002435,8.583e-05,2]
[327255734,1715937032234,-2281.46345512,8.583e-05,2]
[327255735,1715937032247,-2815.80071661,8.583e-05,2]
[327255736,1715937032311,-204.2362303,8.583e-05,2]
[327255737,1715937032320,-64.7637702,8.584e-05,2]
[327255738,1715937032331,-790.58716775,8.584e-05,2]
[327255739,1715937032341,-150.0,8.586e-05,2]
[327255740,1715937032350,-1252.37,8.641e-05,2]
[327255741,1715937032360,-250.0,0.00010228,2]
[327255742,1715937032369,-1051.57,0.00010229,2]
[327255743,1715937032379,-496.96,0.00010248,2]
[327255744,1715937032388,-167.6,0.00010286,2]
[327255745,1715937032401,-250.0,0.00010295,2]
[327255746,1715937032411,-1673.67,0.00010374,2]
[327255747,1715937032420,-2890.67,0.00010423,2]
[327255748,1715937032430,-371.93,0.00010588,2]
[327255749,1715937032441,-739.99,0.0001063,15]
[327255750,1715937032450,-306.36,0.00010751,2]
[327255751,1715937032460,-158.33,0.00010783,2]
[327255752,1715937032470,-1252.37,0.00010905,2]
[327255753,1715937032479,-158.33,0.00010924,2]
[327255754,1715937032488,-150.0,0.00010959,2]
[327255755,1715937032498,-784.88,0.00010959,2]
[327255756,1715937032509,-200.0,0.00011,2]
[327255757,1715937032518,-158.33,0.00011064,2]
[327255758,1715937032528,-321.52,0.00011178,2]
[327255759,1715937032537,-158.33,0.00011205,2]
[327255760,1715937032547,-158.33,0.00011345,2]
[327255761,1715937032557,-422.54,0.00011378,2]
[327255762,1715937032567,-150.0,0.00011378,2]
[327255763,1715937032576,-163.38,0.00011378,2]
[327255764,1715937032586,-1000.0,0.00011512,2]
[327255765,1715937032595,-13117.19191425,0.00011513,2]
[327255766,1715937032607,-657.25,0.00011513,2]
[327255767,1715937032618,-623.17277901,0.00011513,2]
[327255852,1715937038033,-4086.59037432,0.00011513,2]
[327255853,1715937038042,-496.96,0.00011528,2]
[327255854,1715937038051,-227.33,0.00011709,2]
[327255855,1715937038060,-17238.91643519,0.00011763,2]
[327255856,1715937038071,-568.59559293,0.00011763,2]
[327255857,1715937038082,-362.26956143,0.00011763,2]
[327255858,1715937038093,-1490.7756,0.00011763,2]
[327255859,1715937038108,-71881.96891045,0.00011763,2]
[327255860,1715937038118,-439.619,0.00011763,2]
[327255861,1715937038127,-1954.3304,0.00011763,2]
[327255862,1715937038136,-7500.0,0.00011763,2]
[327255863,1715937038146,-160.99,0.00011853,2]
[327255864,1715937038155,-8202.0,0.00011862,2]
[327255865,1715937038165,-7109.7111,0.00011863,2]
[327255866,1715937038174,-29567.9303,0.00011863,2]
[327255867,1715937038184,-368.051,0.00011863,2]
[327255868,1715937038193,-1000.0,0.00011863,2]
[327255869,1715937038209,-77487.6564833,0.00011863,2]
[327255870,1715937038220,-1229.7413409,0.00011863,2]
[327255871,1715937038231,-876.16594478,0.00011863,2]
[327255872,1715937038242,-486.83097929,0.00011863,2]
[327255873,1715937038255,-324.95664198,0.00011863,2]
[327255874,1715937038266,-6563.34065266,0.00011863,2]
[327255875,1715937038280,-275.96458678,0.00011863,2]
[327255876,1715937038293,-3499.8,0.00011863,2]
[327255877,1715937038304,-523.78823262,0.00011863,2]
[327255878,1715937038315,-1352.46003769,0.00011863,2]
[327255879,1715937038324,-500.0,0.00011863,2]
[327255880,1715937038334,-636.89382356,0.00011863,2]
[327255881,1715937038345,-363.10617644,0.00011863,2]
[327255882,1715937038355,-155.19873687,0.00011864,2]
[327255883,1715937038363,-155.0,0.00011962,2]
[327255884,1715937038373,-4084.05594897,0.00011963,2]
[327255885,1715937038384,-420.40862728,0.00011963,2]
[327255886,1715937038397,-328.92787868,0.00011963,2]
[327255887,1715937038474,-173244.14525885,0.00011963,2]
[327255888,1715937038484,-519.52,0.00012,2]
[327255890,1715937038493,-1500.00000021,0.00012,2]
[327255892,1715937038505,-306.36,0.00012095,2]
[327255894,1715937038514,-773.25974582,0.0001215,2]
[327255896,1715937038523,-10000.0,0.00012152,2]
[327255898,1715937038533,-840.88,0.00012192,2]
[327255900,1715937038542,-163.35,0.00012192,2]
[327255902,1715937038551,-1131.61,0.00012192,2]
[327255904,1715937038560,-155.78,0.00012192,2]
[327255906,1715937038569,-305.37480479,0.00012255,2]
[327255908,1715937038579,-500.0,0.00012328,2]
[327255910,1715937038588,-500.0,0.00012328,2]
[327255912,1715937038598,-500.0,0.00012328,2]
[327255914,1715937038607,-507.45331055,0.00012328,2]
[327255916,1715937038617,-516.78,0.00012328,2]
[327255918,1715937038626,-500.0,0.00012328,2]
[327255920,1715937038635,-500.0,0.00012328,2]
[327255922,1715937038644,-500.0,0.00012328,2]
[327255924,1715937038654,-500.0,0.00012328,2]
[327255926,1715937038663,-625.84,0.00012328,2]
[327255928,1715937038672,-503.81682173,0.00012328,2]
[327255930,1715937038681,-500.0,0.00012328,2]
[327255932,1715937038690,-500.0,0.00012328,2]
[327255934,1715937038699,-192.68396042,0.00012328,2]
[327255936,1715937038708,-500.0,0.00012328,2]
[327255938,1715937038717,-500.0,0.00012328,2]
[327255939,1715937038726,-500.0,0.00012328,2]
[327255940,1715937038735,-503.64170148,0.00012328,2]
[327255941,1715937038744,-500.0,0.00012328,2]
[327255942,1715937038754,-500.0,0.00012328,2]
[327255943,1715937038763,-500.0,0.00012328,2]
[327255944,1715937038772,-500.0,0.00012328,2]
[327255945,1715937038781,-500.0,0.00012328,2]
[327255946,1715937038790,-505.50440331,0.00012328,2]
[327255947,1715937038799,-503.38269633,0.00012328,2]
[327255948,1715937038808,-500.0,0.00012328,2]
[327255949,1715937038817,-500.0,0.00012328,2]
[327255950,1715937038825,-498.28864472,0.00012328,2]
[327255951,1715937038834,-500.0,0.00012328,2]
[327255952,1715937038843,-500.0,0.00012328,2]
[327255953,1715937038852,-500.0,0.00012328,2]
[327255955,1715937038861,-511.70531946,0.00012328,2]
[327255956,1715937038870,-500.8996453,0.00012328,2]
[327255958,1715937038879,-500.79723888,0.00012328,2]
[327255960,1715937038889,-503.40438427,0.00012328,2]
[327255962,1715937038898,-511.07498214,0.00012328,2]
[327255964,1715937038907,-401.60859036,0.00012328,2]
[327255966,1715937038916,-574.33,0.00012328,2]
[327255968,1715937038925,-500.0,0.00012328,2]
[327255970,1715937038933,-506.12635514,0.00012328,2]
[327255972,1715937038942,-500.0,0.00012328,2]
[327255974,1715937038951,-500.0,0.00012328,2]
[327255976,1715937038960,-517.36947334,0.00012328,2]
[327255978,1715937038969,-550.07132139,0.00012328,2]
[327255980,1715937038977,-500.0,0.00012328,2]
[327255982,1715937038986,-504.7693156,0.00012328,2]
[327255984,1715937038995,-505.70729917,0.00012328,2]
[327255986,1715937039005,-506.37175754,0.00012328,2]
[327255988,1715937039013,-500.0,0.00012328,2]
[327255990,1715937039022,-500.0,0.00012328,2]
[327255992,1715937039031,-507.08386213,0.00012328,2]
[327255994,1715937039040,-500.0,0.00012328,2]
[327255996,1715937039049,-500.0,0.00012328,2]
[327255998,1715937039059,-500.0,0.00012328,2]
[327256000,1715937039067,-500.0,0.00012328,2]
[327256002,1715937039077,-503.50268886,0.00012328,2]
[327256004,1715937039086,-500.0,0.00012328,2]
[327256006,1715937039095,-502.27751296,0.00012328,2]
[327256008,1715937039105,-500.0,0.00012328,2]
[327256010,1715937039114,-500.0,0.00012328,2]
[327256012,1715937039124,-503.76152731,0.00012328,2]
[327256014,1715937039133,-500.0,0.00012328,2]
[327256016,1715937039142,-503.11979763,0.00012328,2]
[327256018,1715937039151,-508.68277493,0.00012328,2]
[327256020,1715937039161,-500.0,0.00012328,2]
[327256022,1715937039170,-527.59834664,0.00012328,2]
[327256024,1715937039179,-500.0,0.00012328,2]
[327256026,1715937039190,-500.0,0.00012328,2]
[327256028,1715937039203,-457.42,0.00012328,2]
[327256030,1715937039213,-504.99848447,0.00012328,2]
[327256032,1715937039222,-506.26482911,0.00012328,2]
[327256034,1715937039231,-508.11889946,0.00012328,2]
[327256036,1715937039242,-500.0,0.00012328,2]
[327256038,1715937039251,-500.0,0.00012328,2]
[327256040,1715937039263,-500.0,0.00012328,2]
[327256042,1715937039272,-505.0028565,0.00012328,2]
[327256044,1715937039283,-506.79707029,0.00012328,2]
[327256046,1715937039293,-509.55,0.00012328,2]
[327256048,1715937039303,-500.0,0.00012328,2]
[327256050,1715937039312,-500.0,0.00012328,2]
[327256052,1715937039321,-500.0,0.00012328,2]
[327256053,1715937039331,-500.0,0.00012328,2]
[327256055,1715937039340,-645.83,0.00012328,2]
[327256058,1715937039349,-500.0,0.00012328,2]
[327256059,1715937039358,-500.0,0.00012328,2]
[327256062,1715937039368,-370.17,0.00012328,2]
[327256063,1715937039377,-500.0,0.00012328,2]
[327256066,1715937039387,-626.19,0.00012328,2]
[327256067,1715937039396,-500.0,0.00012328,2]
[327256069,1715937039407,-500.0,0.00012328,2]
[327256071,1715937039416,-500.0,0.00012328,2]
[327256073,1715937039425,-500.0,0.00012328,2]
[327256075,1715937039435,-500.0,0.00012328,2]
[327256077,1715937039444,-500.0,0.00012328,2]
[327256078,1715937039453,-504.70953834,0.00012328,2]
[327256079,1715937039464,-500.0,0.00012328,2]
[327256080,1715937039473,-500.0,0.00012328,2]
[327256081,1715937039483,-500.0,0.00012328,2]
[327256082,1715937039492,-500.0,0.00012328,2]
[327256083,1715937039501,-500.0,0.00012328,2]
[327256084,1715937039512,-500.0,0.00012328,2]
[327256085,1715937039521,-552.19152278,0.00012328,2]
[327256086,1715937039530,-500.0,0.00012328,2]
[327256087,1715937039539,-500.0,0.00012328,2]
[327256088,1715937039548,-509.91824781,0.00012328,2]
[327256089,1715937039558,-321.52,0.00012575,2]
[327256090,1715937039567,-1841.63511,0.0001275,2]
[327256091,1715937039577,-172.44379033,0.0001278,2]
[327256092,1715937039587,-9600.88199038,0.0001278,2]
[327256093,1715937039596,-317.67127195,0.0001278,2]
[327256094,1715937039606,-183.27059639,0.0001278,2]
[327256095,1715937039616,-4226.85265144,0.0001278,2]
[327256096,1715937039625,-9600.88199035,0.00012791,2]
[327256097,1715937039635,-20216.6879,0.000128,2]
[327256098,1715937039645,-5763.8297,0.000128,2]
[327256099,1715937039654,-9600.88199035,0.00012802,2]
[327256100,1715937039664,-325.50423676,0.00012803,2]
[327256101,1715937039673,-160.99,0.00012803,2]
[327256102,1715937039683,-496.96,0.00012809,2]
[327256103,1715937039692,-9600.88199035,0.00012813,2]
[327256104,1715937039702,-9600.88199035,0.00012824,2]
[327256105,1715937039712,-151.0,0.00012824,2]
[327256106,1715937039722,-151.0,0.00012824,2]
[327256107,1715937039732,-151.0,0.00012824,2]
[327256108,1715937039741,-151.0,0.00012824,2]
[327256109,1715937039751,-9600.88199035,0.00012835,2]
[327256110,1715937039761,-151.0,0.00012835,2]
[327256111,1715937039771,-339.613181,0.00012835,2]
[327256112,1715937039780,-339.613181,0.00012835,2]
[327256113,1715937039790,-317.67127195,0.0001284,2]
[327256114,1715937039800,-4226.85265143,0.0001284,2]
[327256115,1715937039810,-500.0,0.00012845,2]
[327256116,1715937039819,-383.78,0.00012845,2]
[327256117,1715937039829,-495.95,0.00012845,2]
[327256118,1715937039839,-500.0,0.00012845,2]
[327256119,1715937039848,-500.0,0.00012845,2]
[327256120,1715937039858,-436.35,0.00012845,2]
[327256121,1715937039869,-151.0,0.00012845,2]
[327256122,1715937039879,-500.0,0.00012845,2]
[327256123,1715937039888,-151.0,0.00012845,2]
[327256124,1715937039898,-500.0,0.00012845,2]
[327256125,1715937039907,-151.0,0.00012845,2]
[327256126,1715937039916,-153.200329,0.00012845,2]
[327256127,1715937039926,-465.49,0.00012845,2]
[327256128,1715937039935,-151.0,0.00012845,2]
[327256129,1715937039945,-500.0,0.00012845,2]
[327256130,1715937039954,-203.2814,0.00012845,2]
[327256131,1715937039963,-151.0,0.00012845,2]
[327256132,1715937039972,-151.0,0.00012845,2]
[327256133,1715937039982,-151.0,0.00012845,2]
[327256134,1715937039991,-182.392427,0.00012845,2]
[327256135,1715937040000,-152.927149,0.00012845,2]
[327256136,1715937040011,-151.0,0.00012845,2]
[327256137,1715937040021,-471.75378426,0.00012845,2]
[327256138,1715937040030,-151.0,0.00012845,2]
[327256139,1715937040039,-509.55,0.00012845,2]
[327256140,1715937040049,-151.0,0.00012845,2]
[327256141,1715937040059,-500.0,0.00012845,2]
[327256143,1715937040068,-500.0,0.00012845,2]
[327256145,1715937040078,-297.96537509,0.00012845,2]
[327256146,1715937040087,-9600.88199035,0.00012845,2]
[327256147,1715937040097,-800.0,0.00012849,2]
[327256149,1715937040107,-151.0,0.00012856,2]
[327256151,1715937040116,-151.0,0.00012856,2]
[327256153,1715937040126,-9600.88199035,0.00012856,2]
[327256154,1715937040136,-9600.88199035,0.00012867,2]
[327256156,1715937040145,-3055.224914,0.00012867,2]
[327256157,1715937040155,-179.12079311,0.00012869,2]
[327256159,1715937040164,-325.50423676,0.0001287,2]
[327256162,1715937040174,-160.99,0.0001287,2]
[327256164,1715937040182,-160.99,0.0001287,2]
[327256167,1715937040191,-160.99,0.0001287,2]
[327256170,1715937040208,-160.99,0.0001287,2]
[327256173,1715937040218,-2220.98098245,0.00012878,2]
[327256176,1715937040228,-2186.5524255,0.00012878,2]
[327256178,1715937040239,-3832.1500568,0.00012878,2]
[327256180,1715937040248,-1246.5444,0.00012878,2]
[327256181,1715937040258,-1379.88066855,0.00012878,2]
[327256182,1715937040268,-655.88237123,0.00012878,2]
[327256183,1715937040278,-168.08185894,0.00012878,2]
[327256185,1715937040288,-377.69271181,0.00012878,2]
[327256187,1715937040299,-359.06297565,0.00012878,2]
[327256189,1715937040309,-418.64073635,0.00012878,2]
[327256190,1715937040318,-260.04829013,0.00012878,2]
[327256191,1715937040328,-240.91808492,0.00012878,2]
[327256192,1715937040337,-789.12600427,0.00012878,2]
[327256193,1715937040347,-155.06893201,0.00012878,2]
[327256194,1715937040356,-155.0,0.00012878,2]
[327256195,1715937040366,-312.80892937,0.00012878,2]
[327256196,1715937040375,-156.74150964,0.00012878,2]
[327256197,1715937040385,-155.71437398,0.00012878,2]
[327256198,1715937040394,-155.44260469,0.00012878,2]
[327256199,1715937040403,-1222.42408721,0.00012878,2]
[327256200,1715937040413,-281.05079772,0.00012878,2]
[327256201,1715937040422,-299.55948355,0.00012878,2]
[327256202,1715937040431,-783.62102359,0.00012878,2]
[327256203,1715937040441,-2002.352608,0.00012878,2]
[327256204,1715937040451,-490.48999384,0.00012878,2]
[327256205,1715937040460,-318.76754807,0.00012878,2]
[327256206,1715937040469,-1483.60627203,0.00012878,2]
[327256207,1715937040478,-2214.05733892,0.00012878,2]
[327256208,1715937040488,-223.19066619,0.00012878,2]
[327256209,1715937040498,-1092.21850017,0.00012878,2]
[327256210,1715937040508,-1533.08371307,0.00012878,2]
[327256211,1715937040518,-231.50937851,0.00012878,2]
[327256212,1715937040527,-1890.79854751,0.00012878,2]
[327256213,1715937040725,-1470.72490702,0.00012878,2]
[327256214,1715937040735,-293.06056207,0.00012878,2]
[327256215,1715937040744,-155.90548388,0.00012878,2]
[327256216,1715937040754,-2325.27290029,0.00012878,2]
[327256217,1715937040764,-155.16832622,0.00012878,2]
[327256218,1715937040774,-1137.94257999,0.00012878,2]
[327256219,1715937040784,-156.34470109,0.00012878,2]
[327256220,1715937040794,-156.35313267,0.00012878,2]
[327256221,1715937040803,-308.29127217,0.00012878,2]
[327256222,1715937040812,-155.29631137,0.00012878,2]
[327256223,1715937040822,-155.12665646,0.00012878,2]
[327256224,1715937040831,-155.92446153,0.00012878,2]
[327256225,1715937040841,-155.0,0.00012878,2]
[327256226,1715937040851,-155.0,0.00012878,2]
[327256227,1715937040860,-155.18626496,0.00012878,2]
[327256229,1715937040870,-217.68183676,0.00012878,2]
[327256231,1715937040879,-276.26477197,0.00012878,2]
[327256233,1715937040888,-281.81285646,0.00012878,2]
[327256235,1715937040897,-541.19393211,0.00012878,2]
[327256237,1715937040906,-500.0,0.00012878,2]
[327256239,1715937040916,-273.4,0.00012878,2]
[327256241,1715937040925,-331.34,0.00012878,2]
[327256243,1715937040934,-500.0,0.00012878,2]
[327256245,1715937040943,-404.23,0.00012878,2]
[327256247,1715937040953,-19626.96507151,0.00012878,2]
[327256249,1715937040962,-884.34210717,0.00012878,2]
[327256251,1715937040972,-170.94453194,0.00012878,2]
[327256254,1715937040980,-500.0,0.00012878,2]
[327256258,1715937040990,-533.53,0.00012878,2]
[327256262,1715937040999,-625.95212898,0.00012878,2]
[327256266,1715937041008,-500.0,0.00012878,2]
[327256270,1715937041018,-500.0,0.00012878,2]
[327256274,1715937041027,-615.55444059,0.00012878,2]
[327256278,1715937041036,-500.0,0.00012878,2]
[327256282,1715937041045,-304.62,0.00012878,2]
[327256285,1715937041055,-500.0,0.00012878,2]
[327256288,1715937041063,-280.53,0.00012878,2]
[327256291,1715937041073,-599.65,0.00012878,2]
[327256293,1715937041082,-500.0,0.00012878,2]
[327256295,1715937041091,-500.0,0.00012878,2]
[327256297,1715937041100,-259.36996738,0.00012878,2]
[327256299,1715937041109,-237.26,0.00012878,2]
[327256301,1715937041118,-342.43,0.00012878,2]
[327256303,1715937041128,-9600.88199035,0.00012878,2]
[327256305,1715937041137,-155.09401226,0.00012879,2]
[327256307,1715937041146,-168.33469646,0.00012879,2]
[327256309,1715937041155,-623.222624,0.00012879,2]
[327256311,1715937041164,-186.31901462,0.00012879,2]
[327256313,1715937041174,-424.0,0.00012879,2]
[327256315,1715937041183,-500.0,0.00012879,2]
[327256317,1715937041194,-500.0,0.00012879,2]
[327256319,1715937041205,-267.65,0.00012879,2]
[327256321,1715937041215,-302.86109024,0.00012879,2]
[327256323,1715937041224,-482.96846702,0.00012879,2]
[327256325,1715937041234,-470.78,0.00012879,2]
[327256327,1715937041244,-500.0,0.00012879,2]
[327256329,1715937041253,-296.69,0.00012879,2]
[327256331,1715937041264,-151.0,0.00012879,2]
[327256333,1715937041274,-500.0,0.00012879,2]
[327256335,1715937041284,-500.0,0.00012879,2]
[327256337,1715937041293,-500.0,0.00012879,2]
[327256338,1715937041302,-500.0,0.00012879,2]
[327256341,1715937041311,-500.0,0.00012879,2]
[327256343,1715937041320,-500.0,0.00012879,2]
[327256345,1715937041330,-500.0,0.00012879,2]
[327256347,1715937041339,-500.0,0.00012879,2]
[327256349,1715937041348,-328.38,0.00012879,2]
[327256351,1715937041358,-238.284638,0.00012879,2]
[327256353,1715937041367,-151.0,0.00012879,2]
[327256355,1715937041376,-246.33,0.00012879,2]
[327256357,1715937041386,-151.0,0.00012879,2]
[327256359,1715937041394,-240.92014039,0.00012879,2]
[327256361,1715937041404,-500.0,0.00012879,2]
[327256363,1715937041413,-585.61,0.00012879,2]
[327256365,1715937041422,-202.67,0.00012879,2]
[327256367,1715937041431,-339.613181,0.00012879,2]
[327256369,1715937041440,-339.613181,0.00012879,2]
[327256371,1715937041449,-509.55,0.00012879,2]
[327256373,1715937041459,-509.55,0.00012879,2]
[327256375,1715937041468,-509.55,0.00012879,2]
[327256377,1715937041478,-509.55,0.00012879,2]
[327256379,1715937041487,-509.55,0.00012879,2]
[327256381,1715937041496,-509.55,0.00012879,2]
[327256383,1715937041505,-500.0,0.00012879,2]
[327256385,1715937041514,-509.55,0.00012879,2]
[327256387,1715937041523,-500.0,0.00012879,2]
[327256389,1715937041533,-509.55,0.00012879,2]
[327256391,1715937041542,-500.0,0.00012879,2]
[327256393,1715937041551,-500.0,0.00012879,2]
[327256395,1715937041560,-500.0,0.00012879,2]
[327256397,1715937041570,-316.79,0.00012879,2]
[327256399,1715937041578,-224.96670513,0.00012879,2]
[327256411,1715937041688,-1827.16704003,0.00012163,2]
[327256414,1715937041703,-4152.98162302,0.00012163,2]
[327256416,1715937041712,-151.0,0.00012824,2]
[327256418,1715937041722,-166.55462919,0.00012879,2]
[327256420,1715937041731,-151.0,0.00012879,2]
[327256422,1715937041740,-151.0,0.00012879,2]
[327256424,1715937041750,-500.0,0.00012879,2]
[327256426,1715937041760,-500.0,0.00012879,2]
[327256428,1715937041769,-362.33,0.00012879,2]
[327256430,1715937041779,-500.0,0.00012879,2]
[327256432,1715937041788,-500.0,0.00012879,2]
[327256434,1715937041797,-500.0,0.00012879,2]
[327256436,1715937041807,-500.0,0.00012879,2]
[327256438,1715937041815,-30.93749817,0.00012879,2]
[327256442,1715937041844,-469.06250183,0.00012879,2]
[327256444,1715937041854,-225.69749617,0.00012879,2]
[327256446,1715937041865,-274.30250383,0.00012879,2]
[327256448,1715937041874,-216.84462262,0.00012879,2]
[327256450,1715937041883,-135.41287355,0.00012879,2]
[327256453,1715937041898,-15.58712645,0.00012879,2]
[327256455,1715937041907,-552.78616747,0.0001288,2]
[327256458,1715937041928,-309.82699699,0.0001288,2]
[327256519,1715937043367,-1080.05055866,0.0001288,2]
[327256520,1715937043431,-471.441,0.0001288,2]
[327256521,1715937043497,-52650.54696996,0.0001288,2]